bitfinex/quotes_ETHUSD_20240607
["timestamp","ask_amount","ask_price","bid_price","bid_amount"]
[1717754667089,2.62357,3811.6,3811.5,0.59306011]
[1717754667288,3.40857,3811.6,3811.5,0.59306011]
[1717754667456,3.40857,3811.6,3811.5,1.41088251]
[1717754667783,8.38554,3811.6,3811.5,1.41088251]
[1717754667989,8.95286496,3811.6,3811.5,1.41088251]
[1717754668201,10.3802855,3811.6,3811.5,1.41088251]
[1717754668904,10.3802855,3811.6,3811.5,1.41089978]
[1717754670173,10.3802855,3811.6,3811.5,0.0426251]
[1717754670495,10.3802855,3811.6,3811.5,1.4109102]
[1717754670801,10.3802855,3811.6,3811.5,0.0426251]
[1717754671583,9.5952855,3811.6,3811.5,0.0426251]
[1717754671976,10.3802855,3811.6,3811.5,0.0426251]
[1717754672802,9.81296054,3811.6,3811.5,0.0426251]
[1717754673160,10.38033622,3811.6,3811.5,0.0426251]
[1717754675658,13.00390622,3811.6,3811.5,0.0426251]
[1717754675862,16.55390622,3811.6,3811.5,0.0426251]
[1717754676169,16.68250622,3811.6,3811.5,0.0426251]
[1717754676522,16.68250622,3811.6,3811.0,0.55043501]
[1717754676523,7.72982,3811.1,3811.0,0.55043501]
[1717754676773,9.287802,3811.1,3811.0,1.91883164]
[1717754677277,9.287802,3811.1,3811.0,1.36839663]
[1717754677447,10.037802,3811.1,3811.0,1.36839663]
[1717754682129,7.555802,3811.1,3811.0,1.36839663]
[1717754682432,6.78282,3811.1,3811.0,1.36839663]
[1717754690377,6.78282,3811.1,3811.0,0.41939053]
[1717754694878,2.62405,3810.9,3810.8,0.55043501]
[1717754695403,3.40905,3810.9,3810.8,0.55043501]
[1717754700392,3.40905,3810.9,3810.8,1.91888203]
[1717754701596,3.40905,3810.9,3810.8,1.91889524]
[1717754702083,3.40905,3810.9,3810.8,1.36846023]
[1717754702302,3.40905,3810.9,3810.8,1.91868413]
[1717754702806,2.62405,3810.9,3810.8,1.91868413]
[1717754702976,3.40905,3810.9,3810.8,1.91868413]
[1717754703381,3.40905,3810.9,3810.8,1.36846023]
[1717754704110,3.40905,3810.9,3810.8,1.20544861]
[1717754704508,2.62405,3810.9,3810.8,1.20544861]
[1717754704699,3.40905,3810.9,3810.8,1.20544861]
[1717754706216,2.62405,3810.9,3810.8,1.20544861]
[1717754706510,3.40905,3810.9,3810.8,5.29671638]
[1717754707027,3.40905,3810.9,3810.8,6.6722285]
[1717754707879,3.40905,3810.9,3810.8,5.29671638]
[1717754708325,3.40905,3810.9,3810.8,6.67257492]
[1717754708501,2.6239,3811.2,3810.9,2.3891]
[1717754708705,2.6239,3811.2,3811.1,1.10088199]
[1717754708892,3.4089,3811.2,3811.1,1.82456777]
[1717754709224,3.4089,3811.2,3811.1,3.20042631]
[1717754709788,3.4089,3811.2,3811.1,1.82456777]
[1717754710022,4.1589,3811.2,3811.1,1.82456777]
[1717754710403,4.1589,3811.2,3811.1,2.92537746]
[1717754710923,4.1589,3811.2,3811.1,1.82456777]
[1717754711803,4.1589,3811.2,3811.1,2.92537746]
[1717754713055,4.1589,3811.2,3811.1,2.92537746]
[1717754714152,4.1589,3811.2,3811.1,4.29363645]
[1717754714851,4.1589,3811.2,3811.1,3.19282676]
[1717754715352,4.1589,3811.2,3811.1,4.29363645]
[1717754716554,4.1589,3811.2,3811.1,4.5686853]
[1717754717172,4.1589,3811.2,3811.1,3.19282676]
[1717754717672,4.1589,3811.2,3811.1,4.5686853]
[1717754717825,3.4089,3811.2,3811.1,4.5686853]
[1717754718451,2.6239,3811.2,3811.1,4.5686853]
[1717754718653,2.62369,3811.5,3811.1,4.5686853]
[1717754719171,0.785,3811.2,3811.1,1.37585854]
[1717754719379,0.785,3811.2,3811.1,4.56827392]
[1717754720632,0.785,3811.2,3811.1,1.82423736]
[1717754720842,0.785,3811.2,3811.1,4.56816171]
[1717754722180,0.785,3811.2,3811.1,3.19241603]
[1717754722850,0.785,3811.2,3811.1,3.19241564]
[1717754724637,0.75,3811.4,3811.1,3.19241564]
[1717754724836,0.75,3811.4,3811.2,4.29253771]
[1717754725062,0.75,3811.4,3811.3,3.19241564]
[1717754725273,1.535,3811.4,3811.3,3.19241564]
[1717754726447,0.75,3811.4,3811.3,3.19241564]
[1717754726855,0.785,3811.4,3811.3,3.19241564]
[1717754728276,0.785,3811.6,3811.4,2.3844]
[1717754728480,0.75,3811.7,3811.5,3.19241564]
[1717754728664,2.62328,3812.1,3811.6,3.19241564]
[1717754728883,2.62328,3812.1,3812.0,0.5497107]
[1717754729041,4.15828,3812.1,3812.0,1.91788898]
[1717754729372,4.15828,3812.1,3812.0,1.36817828]
[1717754729970,3.37328,3812.1,3812.0,1.36817828]
[1717754730168,4.15828,3812.1,3812.0,1.3679869]
[1717754730369,5.538608,3812.1,3812.0,1.3679869]
[1717754731893,5.538608,3812.1,3812.0,1.43440436]
[1717754733495,5.538608,3812.1,3812.0,1.4344226]
[1717754737155,3.37328,3812.1,3812.0,1.4344226]
[1717754737345,4.15828,3812.1,3812.0,1.4344226]
[1717754737544,3.37328,3812.1,3812.0,1.4344226]
[1717754737942,4.15828,3812.1,3812.0,1.4344226]
[1717754738402,3.37328,3812.1,3812.0,1.4344226]
[1717754738688,0.75,3812.1,3812.0,1.4344226]
[1717754739047,1.535,3812.1,3812.0,1.4344226]
[1717754740257,1.535,3812.1,3812.0,1.98342956]
[1717754745704,1.535,3812.1,3812.0,1.4344226]
[1717754745905,1.535,3812.1,3812.0,1.9835186]
[1717754746069,0.75,3812.1,3812.0,1.4344226]
[1717754746407,0.75,3812.1,3812.0,3.25817931]
[1717754746590,0.785,3812.2,3812.0,3.25817931]
[1717754746768,0.785,3812.2,3812.1,3.19176185]
[1717754746960,0.785,3812.2,3812.1,4.01523483]
[1717754747165,0.785,3812.2,3812.1,4.08189982]
[1717754747808,0.785,3812.2,3812.1,1.43467013]
[1717754750406,0.75,3812.3,3812.1,1.43467013]
[1717754750609,0.75,3812.3,3812.2,1.91708285]
[1717754750767,1.535,3812.3,3812.2,1.91708285]
[1717754751104,1.535,3812.3,3812.2,1.98357974]
[1717754754278,2.182767,3812.3,3812.2,1.98357974]
[1717754755940,1.397767,3812.3,3812.2,1.98357974]
[1717754756220,2.182767,3812.3,3812.2,1.98357974]
[1717754763920,2.182767,3812.3,3812.2,1.43450203]
[1717754765296,2.182767,3812.3,3812.2,1.98412035]
[1717754765806,2.182767,3812.3,3812.2,1.43450203]
[1717754766828,0.75,3812.3,3812.2,3.69250203]
[1717754767031,1.535,3812.3,3812.2,6.3398221]
[1717754767245,0.785,3812.3,3812.2,6.3398221]
[1717754767439,0.785,3812.3,3812.2,6.61577052]
[1717754767606,0.785,3812.3,3812.2,6.61554169]
[1717754767809,2.62297,3812.5,3812.2,6.61554169]
[1717754768010,0.785,3812.3,3812.2,3.42391829]
[1717754768241,0.785,3812.3,3812.2,5.5159756]
[1717754768422,0.785,3812.3,3812.2,6.61507624]
[1717754769317,0.785,3812.3,3812.2,5.5159756]
[1717754770050,0.785,3812.3,3812.2,6.88987029]
[1717754770914,0.785,3812.3,3812.2,5.5159756]
[1717754771114,0.785,3812.3,3812.2,6.88987029]
[1717754776050,0.785,3812.3,3812.2,4.63187029]
[1717754777759,0.785,3812.3,3812.2,3.2579756]
[1717754779132,0.785,3812.3,3812.2,4.63187029]
[1717754780962,0.785,3812.3,3812.2,3.2579756]
[1717754781266,2.62288,3812.6,3812.2,3.2579756]
[1717754781468,2.62288,3812.6,3812.5,0.82503564]
[1717754781653,4.15788,3812.6,3812.5,4.01651435]
[1717754781841,4.15788,3812.6,3812.5,3.25786494]
[1717754786537,4.15788,3812.6,3812.5,4.08293015]
[1717754787340,4.15788,3812.6,3812.5,3.25786494]
[1717754790274,3.37288,3812.6,3812.5,3.25786494]
[1717754790480,4.15788,3812.6,3812.5,3.25786494]
[1717754791374,4.15788,3812.6,3812.5,3.25790705]
[1717754793843,4.15788,3812.6,3812.5,1.43420493]
[1717754794871,4.15788,3812.6,3812.5,2.25955398]
[1717754795698,5.061566,3812.6,3812.5,2.25955398]
[1717754795867,7.377366,3812.6,3812.5,2.25955398]
[1717754796063,7.377366,3812.6,3812.5,1.98441878]
[1717754796274,10.000246,3812.6,3812.5,1.98441878]
[1717754807721,13.173126,3812.6,3812.5,1.98441878]
[1717754807887,16.173126,3812.6,3812.5,0.06638623]
[1717754808546,16.173126,3812.6,3812.1,0.55021385]
[1717754808547,2.4433,3812.1,3811.9,0.01584831]
[1717754808715,6.03158,3812.0,3811.9,0.01584831]
[1717754808920,6.59889093,3812.0,3811.9,1.38403991]
[1717754809279,6.59889093,3812.0,3811.9,1.44009107]
[1717754810218,3.97560093,3812.0,3811.9,1.44009107]
[1717754810414,4.87980602,3812.0,3811.9,0.07189947]
[1717754810616,4.87980602,3812.0,3811.9,1.38401004]
[1717754810820,3.97560093,3812.0,3811.9,0.07189947]
[1717754811034,3.97560093,3812.0,3811.9,1.93436246]
[1717754811329,3.40829,3812.0,3811.9,1.98979373]
[1717754812291,2.62329,3812.0,3811.9,1.98979373]
[1717754812497,3.40829,3812.0,3811.9,1.98979373]
[1717754814495,2.62329,3812.0,3811.9,1.98979373]
[1717754814844,3.40829,3812.0,3811.9,4.08937165]
[1717754815832,2.62329,3812.0,3811.9,4.08937165]
[1717754816055,3.40829,3812.0,3811.9,4.08937165]
[1717754816800,3.40829,3812.0,3811.9,1.43996241]
[1717754819041,0.785,3812.0,3811.9,1.43996241]
[1717754819913,0.785,3812.0,3811.9,4.08930152]
[1717754820740,2.62312,3812.3,3811.9,4.08930152]
[1717754820941,0.785,3812.0,3811.9,4.08930152]
[1717754821243,0.785,3812.0,3811.9,4.08922164]
[1717754822331,1.535,3812.0,3811.9,4.08922164]
[1717754823355,0.785,3812.0,3811.9,4.08922164]
[1717754824945,0.785,3812.0,3811.9,2.72123858]
[1717754825145,0.785,3812.0,3811.9,4.08921822]
[1717754825452,1.535,3812.0,3811.9,4.08921822]
[1717754834221,0.785,3812.0,3811.9,4.08921822]
[1717754834932,2.62308,3812.4,3811.9,3.26386917]
[1717754835126,0.785,3812.1,3812.0,2.4104]
[1717754835353,0.785,3812.1,3812.0,5.6023697]
[1717754835656,0.785,3812.1,3812.0,5.65647552]
[1717754836440,2.62308,3812.4,3812.0,5.65647552]
[1717754836655,2.62308,3812.4,3812.3,0.54967663]
[1717754836853,4.15808,3812.4,3812.3,1.91765627]
[1717754837063,1.535,3812.4,3812.3,1.97175204]
[1717754849508,1.535,3812.4,3812.3,1.42207541]
[1717754855619,1.535,3812.4,3812.3,4.07053033]
[1717754856230,1.535,3812.4,3812.3,1.42207541]
[1717754856433,1.535,3812.4,3812.3,4.07053061]
[1717754867862,0.75,3812.4,3812.3,4.07053061]
[1717754868169,1.535,3812.4,3812.3,4.07053061]
[1717754877396,1.535,3812.4,3812.3,3.24601566]
[1717754878873,1.535,3812.4,3812.3,4.34673947]
[1717754881005,1.535,3812.4,3812.3,4.34664295]
[1717754882979,1.535,3812.4,3812.3,3.24591914]
[1717754883862,0.75,3812.4,3812.3,3.24591914]
[1717754884065,1.535,3812.4,3812.3,3.24591914]
[1717754886685,1.535,3812.4,3812.3,4.34664295]
[1717754887574,1.535,3812.4,3812.3,3.24591914]
[1717754888005,0.75,3812.4,3812.3,3.24591914]
[1717754888315,1.535,3812.4,3812.3,4.34697591]
[1717754888549,1.535,3812.4,3812.3,3.24591914]
[1717754888692,1.535,3812.4,3812.3,4.622442]
[1717754890273,1.535,3812.4,3812.3,3.24591914]
[1717754891217,1.535,3812.4,3812.3,4.3465562]
[1717754891403,4.29471371,3812.4,3812.3,4.3465562]
[1717754891702,4.86190085,3812.4,3812.3,1.42197889]
[1717754892009,4.86190085,3812.4,3812.3,1.9724506]
[1717754892370,4.29471371,3812.4,3812.3,1.9724506]
[1717754892573,4.86192835,3812.4,3812.3,1.9724506]
[1717754893404,4.86192835,3812.4,3812.3,1.9725332]
[1717754894612,4.86192835,3812.4,3812.3,0.05409577]
[1717754894803,4.86192835,3812.4,3812.3,1.42209586]
[1717754894991,4.86192835,3812.4,3812.3,1.36800009]
[1717754895312,4.07692835,3812.4,3812.3,1.41780783]
[1717754895477,4.86192835,3812.4,3812.3,1.41780783]
[1717754895677,4.83476335,3812.4,3812.3,1.41780783]
[1717754897616,7.45777335,3812.4,3812.3,1.41780783]
[1717754898003,10.08078335,3812.4,3812.3,1.41780783]
[1717754898400,7.45777335,3812.4,3812.3,1.41780783]
[1717754898712,10.08078335,3812.4,3812.3,1.41780783]
[1717754898917,7.45777335,3812.4,3812.3,1.41780783]
[1717754899223,10.08078335,3812.4,3812.3,1.41780783]
[1717754900320,7.45777335,3812.4,3812.3,1.41780783]
[1717754907821,6.89055871,3812.4,3812.3,0.04980774]
[1717754908001,7.45777436,3812.4,3812.3,1.41777232]
[1717754908204,7.45777436,3812.4,3812.3,1.36796458]
[1717754908406,7.45777436,3812.4,3812.3,1.41793183]
[1717754908787,7.45776624,3812.4,3812.3,1.41793183]
[1717754910027,6.89055871,3812.4,3812.3,1.41793183]
[1717754910205,7.45777185,3812.4,3812.3,1.41792582]
[1717754911643,5.17057185,3812.4,3812.3,1.41792582]
[1717754914652,5.17057185,3812.4,3812.3,1.96839753]
[1717754915247,5.17057185,3812.4,3812.3,1.41792582]
[1717754917361,5.17057185,3812.4,3812.3,1.36795857]
[1717754918462,5.17057185,3812.4,3812.3,1.41622719]
[1717754919466,3.91305814,3812.4,3812.3,1.41622719]
[1717754919637,1.29004814,3812.4,3812.3,1.41622719]
[1717754919966,7.43,3812.9,3812.6,2.62284]
[1717754920264,7.43,3812.9,3812.7,4.61429101]
[1717754920565,7.43,3812.9,3812.8,4.56604626]
[1717754920770,7.43,3812.9,3812.8,4.61428766]
[1717754921132,7.43,3812.9,3812.8,3.23990691]
[1717754921355,7.43,3812.9,3812.8,4.33827405]
[1717754921991,7.43,3812.9,3812.8,3.23990691]
[1717754922293,7.43,3812.9,3812.8,4.33785254]
[1717754922792,7.43,3812.9,3812.8,6.78875254]
[1717754923293,7.43,3812.9,3812.8,5.69080691]
[1717754923696,7.43,3812.9,3812.8,6.78875254]
[1717754924308,7.43,3812.9,3812.8,5.69080691]
[1717754925418,8.215,3812.9,3812.8,3.86709997]
[1717754925576,1.535,3812.9,3812.8,4.41571383]
[1717754926076,1.535,3812.9,3812.8,3.86709997]
[1717754926272,1.535,3812.9,3812.8,2.4991414]
[1717754926477,1.535,3812.9,3812.8,3.86663174]
[1717754927882,0.75,3812.9,3812.8,4.41507518]
[1717754928202,0.75,3812.9,3812.8,3.86663174]
[1717754928389,0.785,3813.1,3812.8,3.86663174]
[1717754928582,0.785,3813.1,3812.9,1.91580911]
[1717754928583,0.75,3813.0,3812.9,1.91580911]
[1717754928786,0.75,3813.0,3812.9,1.41516379]
[1717754930009,0.75,3813.0,3812.9,4.0612108]
[1717754930195,0.75,3813.0,3812.9,1.41516379]
[1717754932300,0.75,3813.0,3812.9,1.96305376]
[1717754934938,0.75,3813.0,3812.9,1.41516379]
[1717754935233,0.75,3813.0,3812.9,1.96288506]
[1717754936525,0.75,3813.0,3812.9,1.41516379]
[1717754936795,0.75,3813.0,3812.9,1.96288506]
[1717754937533,0.75,3813.0,3812.9,1.41516379]
[1717754938114,0.75,3813.0,3812.9,1.96288506]
[1717754938439,0.75,3813.0,3812.9,1.41516379]
[1717754938621,0.75,3813.0,3812.9,1.96288506]
[1717754939142,0.75,3813.0,3812.9,1.41516379]
[1717754939694,0.75,3813.0,3812.9,1.96257887]
[1717754940101,0.75,3813.0,3812.9,4.06110999]
[1717754940301,0.75,3813.0,3812.9,1.41516379]
[1717754940605,0.75,3813.0,3812.9,4.06108545]
[1717754942126,0.785,3813.4,3813.0,2.62257]
[1717754942313,7.43,3813.9,3813.2,2.62243]
[1717754942510,0.785,3813.6,3813.3,3.81559034]
[1717754942715,0.75,3813.4,3813.3,2.49537697]
[1717754942943,0.75,3813.4,3813.3,3.86265181]
[1717754944856,0.75,3813.4,3813.3,1.41455181]
[1717754945026,0.785,3813.5,3813.3,0.04727697]
[1717754945227,3.0635,3813.5,3813.0,0.54721377]
[1717754945438,3.0635,3813.5,3813.1,1.414587]
[1717754945439,2.62234,3813.4,3813.1,1.414587]
[1717754945642,0.785,3813.2,3813.1,0.04724187]
[1717754946057,0.785,3813.2,3812.8,0.54721377]
[1717754946058,3.40748,3813.2,3812.8,0.54721377]
[1717754946259,3.40748,3813.2,3812.6,0.54721377]
[1717754946260,0.785,3812.9,3812.6,0.54721377]
[1717754946423,0.785,3812.9,3812.7,1.36754784]
[1717754946623,0.785,3812.9,3812.8,1.36754784]
[1717754948237,2.62262,3813.0,3812.8,1.36754784]
[1717754948438,0.785,3812.9,3812.6,0.54721377]
[1717754948729,0.785,3812.9,3812.7,1.91475235]
[1717754948938,0.785,3812.9,3812.8,1.36753858]
[1717754950073,0.785,3812.9,3812.8,1.36752693]
[1717754950647,1.535,3812.9,3812.5,0.54721377]
[1717754950853,0.785,3812.7,3812.5,0.54721377]
[1717754951054,0.785,3812.7,3812.6,1.36760179]
[1717754952186,1.535,3812.7,3812.4,0.54721377]
[1717754952397,2.62288,3812.6,3812.5,1.3676647]
[1717754952553,3.40788,3812.6,3812.5,1.3676647]
[1717754952753,3.40788,3812.6,3812.3,0.54721377]
[1717754952976,2.302,3812.5,3812.4,1.3676861]
[1717754953178,3.40801,3812.4,3812.1,0.54721377]
[1717754953375,2.62301,3812.4,3812.2,1.36774633]
[1717754953590,0.785,3812.3,3812.1,0.54721377]
[1717754953894,0.785,3812.3,3812.2,1.36776586]
[1717754960668,0.785,3812.3,3812.2,1.91497963]
[1717754961099,0.785,3812.3,3812.2,1.36776586]
[1717754961410,0.785,3812.3,3812.2,1.91497963]
[1717754963600,0.785,3812.3,3812.2,1.36776586]
[1717754964299,0.785,3812.3,3812.2,3.19148776]
[1717754964603,0.785,3812.5,3812.3,2.289]
[1717754964802,0.785,3812.5,3812.4,3.19148776]
[1717754965501,0.785,3812.5,3812.4,4.01460292]
[1717754965796,0.785,3812.5,3812.4,3.23900398]
[1717754966106,0.785,3812.5,3812.4,4.06215544]
[1717754966513,0.785,3812.5,3812.4,1.41528208]
[1717754966698,1.535,3812.5,3812.4,1.41528208]
[1717754968192,0.75,3812.5,3812.4,1.41528208]
[1717754968593,1.535,3812.5,3812.4,1.41528208]
[1717754971718,1.535,3812.5,3812.4,1.9640513]
[1717754974157,1.535,3812.5,3812.4,1.41528023]
[1717754974522,1.535,3812.5,3812.4,1.96397211]
[1717754975150,1.535,3812.5,3812.4,1.41528023]
[1717754975526,0.75,3812.5,3812.4,1.41528023]
[1717754975927,1.535,3812.5,3812.4,1.41528023]
[1717754976956,1.535,3812.5,3812.4,1.96398019]
[1717754977175,1.535,3812.5,3812.4,1.41528023]
[1717754978569,1.535,3812.5,3812.4,1.96400712]
[1717754978950,0.75,3812.5,3812.4,1.96400712]
[1717754979141,1.535,3812.5,3812.4,1.96400712]
[1717754979559,1.535,3812.5,3812.4,1.41528023]
[1717754979863,0.75,3812.5,3812.4,1.41528023]
[1717754980070,1.535,3812.5,3812.4,1.41528023]
[1717754982265,0.75,3812.5,3812.4,1.41528023]
[1717754982454,1.535,3812.5,3812.4,1.41528023]
[1717754983566,4.15795,3812.5,3812.4,1.41528023]
[1717754983771,3.37295,3812.5,3812.4,1.41528023]
[1717754983969,4.15795,3812.5,3812.4,1.41528023]
[1717754984374,4.15795,3812.5,3812.4,4.06203725]
[1717754985259,4.15795,3812.5,3812.4,4.06204578]
[1717754989278,1.535,3812.5,3812.4,3.23889432]
[1717754990256,1.535,3812.5,3812.4,4.3360809]
[1717754991164,1.535,3812.5,3812.4,3.23889432]
[1717754991576,1.535,3812.5,3812.4,4.33810109]
[1717754992081,1.535,3812.5,3812.4,2.97033708]
[1717754992259,1.535,3812.5,3812.4,3.23883166]
[1717754995089,1.535,3812.5,3812.4,4.61301809]
[1717754999862,1.535,3812.5,3812.4,4.61410742]
[1717755003973,1.535,3812.5,3812.4,4.61431144]
[1717755006907,0.75,3812.5,3812.4,4.61431144]
[1717755007112,1.535,3812.5,3812.4,4.61431144]
[1717755007287,1.535,3812.5,3812.4,3.2388462]
[1717755011714,1.535,3812.5,3812.4,3.23884343]
[1717755013604,1.535,3812.5,3812.4,1.87113031]
[1717755013804,1.535,3812.5,3812.4,3.23882789]
[1717755013974,0.75,3812.5,3812.4,5.51832166]
[1717755015514,1.535,3812.5,3812.4,5.51832166]
[1717755016123,1.535,3812.5,3812.4,5.51827603]
[1717755016307,1.535,3812.5,3812.4,7.79407603]
[1717755016911,0.75,3812.5,3812.4,9.46323237]
[1717755017111,0.785,3812.6,3812.4,7.81237603]
[1717755017320,0.785,3812.6,3812.5,5.47075981]
[1717755017810,0.785,3812.6,3812.5,5.51331374]
[1717755018389,0.785,3812.6,3812.5,5.51314846]
[1717755019086,7.43,3813.0,3812.6,2.62284]
[1717755019294,0.785,3812.8,3812.7,5.51314176]
[1717755019492,0.785,3812.8,3812.7,5.45144957]
[1717755020016,0.785,3812.9,3812.7,5.45144957]
[1717755020214,7.43,3813.0,3812.8,6.26972044]
[1717755020418,7.43,3813.0,3812.9,1.36748667]
[1717755020615,8.215,3813.0,3812.9,1.4100272]
[1717755020821,8.215,3813.0,3812.9,3.68903644]
[1717755021121,7.43,3813.0,3812.9,3.68903644]
[1717755021303,7.43,3813.0,3812.9,1.4100272]
[1717755021619,7.43,3813.0,3812.9,3.68904235]
[1717755022348,0.785,3813.1,3812.9,3.68904235]
[1717755022518,0.785,3813.1,3813.0,2.74036339]
[1717755022729,0.785,3813.1,3813.0,2.782541]
[1717755023294,0.785,3813.1,3813.0,1.40966428]
[1717755023922,0.785,3813.1,3813.0,2.782541]
[1717755024939,0.75,3813.2,3813.0,5.405121]
[1717755025088,0.75,3813.2,3813.1,2.74036339]
[1717755025291,0.785,3813.3,3813.1,2.74036339]
[1717755025491,1.535,3813.3,3813.2,2.50734603]
[1717755026097,1.535,3813.3,3813.2,2.23306587]
[1717755026553,0.75,3813.3,3813.2,1.40965758]
[1717755026736,1.535,3813.3,3813.2,2.50734603]
[1717755027230,1.535,3813.3,3813.2,1.40965758]
[1717755028329,0.75,3813.3,3813.2,1.40965758]
[1717755028840,0.75,3813.5,3813.2,4.60409949]
[1717755028992,0.785,3813.4,3813.3,4.28753147]
[1717755029194,0.785,3813.4,3813.3,4.32950829]
[1717755029847,10.0521,3813.8,3813.3,4.32950829]
[1717755030142,0.785,3813.4,3813.3,0.04197682]
[1717755030360,0.785,3813.4,3813.3,3.23219542]
[1717755030965,0.785,3813.6,3813.3,5.85454542]
[1717755031263,1.535,3813.6,3813.4,4.28685535]
[1717755031564,1.535,3813.6,3813.5,4.05450714]
[1717755031744,1.535,3813.6,3813.5,4.08060627]
[1717755032337,0.75,3813.6,3813.5,4.08060627]
[1717755032523,1.535,3813.6,3813.5,4.08060627]
[1717755032926,1.535,3813.6,3813.5,1.43530579]
[1717755033621,0.75,3813.6,3813.5,1.43530579]
[1717755033973,1.535,3813.6,3813.5,1.43530579]
[1717755034171,0.75,3813.6,3813.5,1.43530579]
[1717755034468,0.785,3813.6,3813.5,2.71337913]
[1717755034638,2.62187,3814.1,3813.5,2.71337913]
[1717755034964,1.535,3813.7,3813.5,0.89038767]
[1717755035358,1.535,3813.7,3813.6,0.54791045]
[1717755035566,1.535,3813.7,3813.6,0.61588423]
[1717755038969,0.75,3813.7,3813.6,0.61588423]
[1717755039191,1.535,3813.7,3813.6,0.61588423]
[1717755039537,1.535,3813.7,3813.6,0.06797378]
[1717755040644,1.535,3813.7,3813.6,0.61588423]
[1717755041785,1.535,3813.7,3813.6,0.06797378]
[1717755042150,1.535,3813.7,3813.6,0.61588423]
[1717755043875,1.535,3813.7,3813.6,0.06797378]
[1717755045647,1.535,3813.7,3813.6,0.61588423]
[1717755047190,0.75,3813.7,3813.6,0.61588423]
[1717755047482,1.535,3813.7,3813.6,0.61588423]
[1717755048771,0.75,3813.7,3813.6,0.61588423]
[1717755049132,0.785,3813.7,3813.6,0.61588423]
[1717755050007,2.62184,3814.2,3813.6,0.61588423]
[1717755050141,2.62184,3814.2,3813.8,0.54758961]
[1717755050142,0.785,3813.9,3813.8,0.54758961]
[1717755050656,1.535,3813.9,3813.8,0.61558406]
[1717755051089,0.785,3814.0,3813.8,0.06799445]
[1717755051296,8.40934,3814.4,3813.9,0.54756187]
[1717755051593,1.535,3814.1,3814.0,0.61552736]
[1717755052672,1.535,3814.1,3814.0,0.06796549]
[1717755055582,0.75,3814.1,3814.0,0.06796549]
[1717755055777,1.535,3814.1,3814.0,0.06796549]
[1717755058350,1.535,3814.1,3814.0,0.61552736]
[1717755060350,1.535,3814.1,3814.0,0.06796549]
[1717755061180,1.535,3814.1,3813.7,6.15037897]
[1717755061376,0.785,3813.9,3813.8,1.82284446]
[1717755062303,0.785,3813.9,3813.8,2.91948121]
[1717755062472,1.359686,3813.9,3813.8,1.82284446]
[1717755062651,2.109686,3813.9,3813.8,1.82284446]
[1717755063066,4.731726,3813.9,3813.7,0.01584831]
[1717755064154,4.731726,3813.9,3813.7,0.56458442]
[1717755064355,2.9467726,3813.8,3813.7,0.56458442]
[1717755065577,3.7317726,3813.8,3813.7,0.01584831]
[1717755067689,3.7317726,3813.8,3813.7,0.56488627]
[1717755072329,3.7317726,3813.8,3813.7,0.01584831]
[1717755072514,3.7317726,3813.8,3813.7,0.56516433]
[1717755074528,3.7317726,3813.8,3813.7,0.01584831]
[1717755077807,3.7317726,3813.8,3813.7,0.07589358]
[1717755080313,3.7317726,3813.8,3813.7,0.62524075]
[1717755080511,3.7317726,3813.8,3813.7,0.07589358]
[1717755082232,0.4731726,3813.8,3813.7,0.07589358]
[1717755082437,1.2581726,3813.8,3813.7,0.07589358]
[1717755086460,1.2581726,3813.8,3813.7,2.72263393]
[1717755087873,1.2581726,3813.8,3813.7,0.07589358]
[1717755088487,1.2581726,3813.8,3813.7,2.72263357]
[1717755088644,1.2581726,3813.8,3813.7,0.07589358]
[1717755096609,1.2581726,3813.8,3813.7,2.72263663]
[1717755097184,1.2581726,3813.8,3813.7,0.07589358]
[1717755098269,1.2581726,3813.8,3813.7,2.72266426]
[1717755098696,0.4731726,3813.8,3813.7,0.07589358]
[1717755098894,1.2581726,3813.8,3813.7,0.07589358]
[1717755099410,1.2581726,3813.8,3813.7,2.72266656]
[1717755099581,1.2581726,3813.8,3813.7,0.07589358]
[1717755099782,0.4731726,3813.8,3813.7,0.07589358]
[1717755100198,1.2581726,3813.8,3813.7,2.722624]
[1717755100376,1.2581726,3813.8,3813.7,1.89897922]
[1717755101301,1.2581726,3813.8,3813.7,2.72313868]
[1717755102906,3.5514726,3813.8,3813.7,2.72313868]
[1717755103112,6.5514726,3813.8,3813.7,0.07589358]
[1717755103428,6.5514726,3813.8,3813.7,0.01584831]
[1717755106416,7.1014726,3813.8,3813.7,0.01584831]
[1717755112940,6.5514726,3813.8,3813.7,0.01584831]
[1717755113148,4.2581726,3813.8,3813.7,0.01584831]
[1717755114155,3.0,3813.8,3813.7,0.01584831]
[1717755114309,3.37204,3813.9,3813.7,0.01584831]
[1717755114516,0.785,3813.8,3813.7,0.01584831]
[1717755114819,0.785,3813.8,3813.7,2.66313014]
[1717755115851,0.785,3813.8,3813.7,2.72321406]
[1717755116352,0.785,3813.8,3813.7,0.07593223]
[1717755116570,0.785,3813.8,3813.7,0.62537979]
[1717755117665,0.785,3813.8,3813.7,0.07593223]
[1717755118184,0.785,3813.8,3813.7,0.62539534]
[1717755121149,0.785,3813.8,3813.7,0.07593223]
[1717755122087,0.785,3813.8,3813.7,0.62538544]
[1717755122586,0.785,3813.8,3813.7,0.07593223]
[1717755123082,0.785,3813.8,3813.7,0.62536433]
[1717755124650,3.37204,3813.9,3813.7,0.07593223]
[1717755124865,3.37204,3813.9,3813.8,0.54945168]
[1717755125152,4.15704,3813.9,3813.8,0.05993492]
[1717755130100,4.15704,3813.9,3813.8,0.60937142]
[1717755131172,4.15704,3813.9,3813.8,0.05993492]
[1717755132606,4.15704,3813.9,3813.8,0.60937142]
[1717755133095,4.15704,3813.9,3813.8,0.05993492]
[1717755133909,4.15704,3813.9,3813.8,0.60937142]
[1717755135106,4.15704,3813.9,3813.8,0.05993492]
[1717755137102,4.15704,3813.9,3813.8,0.60937142]
[1717755137603,4.15704,3813.9,3813.8,0.05993492]